[Event "Late-Titled-Tuesday-Blitz-October-03-2023"]
[Site "Chess.com"]
[Date "2023.10.03"]
[Round "6"]
[White "Harsha_Bharathakoti"]
[Black "jk13"]
[Result "1-0"]
[WhiteElo "2921"]
[BlackElo "2674"]
[TimeControl "180+1"]
[EndTime "15:04:31 PDT"]
[Termination "Harsha_Bharathakoti won by checkmate"]

1. d4 {[%clk 0:02:59.7]} 1... Nf6 {[%clk 0:02:59.7]} 2. Bg5 {[%clk 0:02:59]}
2... e6 {[%clk 0:03:00.6]} 3. e4 {[%clk 0:02:57.6]} 3... h6 {[%clk 0:03:01.3]}
4. Bxf6 {[%clk 0:02:57.5]} 4... Qxf6 {[%clk 0:03:02.2]} 5. Nd2 {[%clk
0:02:56.9]} 5... d6 {[%clk 0:03:02.8]} 6. Ngf3 {[%clk 0:02:56.5]} 6... g6 {[%clk
0:03:02.7]} 7. Bd3 {[%clk 0:02:56.1]} 7... Bg7 {[%clk 0:03:03]} 8. O-O {[%clk
0:02:56.5]} 8... Qe7 {[%clk 0:03:03.7]} 9. c3 {[%clk 0:02:56.2]} 9... O-O {[%clk
0:03:03.9]} 10. Re1 {[%clk 0:02:55.6]} 10... e5 {[%clk 0:03:00.5]} 11. h3 {[%clk
0:02:53.7]} 11... Nc6 {[%clk 0:02:54.3]} 12. Nb3 {[%clk 0:02:38.2]} 12... Kh8
{[%clk 0:02:48.1]} 13. Bb5 {[%clk 0:02:35.5]} 13... Nd8 {[%clk 0:02:41.6]} 14.
a4 {[%clk 0:02:35.3]} 14... Ne6 {[%clk 0:02:40.9]} 15. Bf1 {[%clk 0:02:30.6]}
15... Nf4 {[%clk 0:02:40.5]} 16. Kh2 {[%clk 0:02:29.8]} 16... Bd7 {[%clk
0:02:30.5]} 17. g3 {[%clk 0:02:29.5]} 17... Nh5 {[%clk 0:02:31]} 18. Bg2 {[%clk
0:02:21.5]} 18... a5 {[%clk 0:02:28.8]} 19. Nbd2 {[%clk 0:02:17.8]} 19... b6
{[%clk 0:02:24.3]} 20. Nc4 {[%clk 0:02:17.9]} 20... Rad8 {[%clk 0:02:17.3]} 21.
Ne3 {[%clk 0:02:10.2]} 21... Nf6 {[%clk 0:02:16.1]} 22. Qc2 {[%clk 0:02:04.2]}
22... Bc6 {[%clk 0:02:14.7]} 23. d5 {[%clk 0:01:56.4]} 23... Bd7 {[%clk
0:02:11.9]} 24. b4 {[%clk 0:01:57.3]} 24... Ra8 {[%clk 0:02:11]} 25. Nc4 {[%clk
0:01:55.6]} 25... axb4 {[%clk 0:01:56.7]} 26. cxb4 {[%clk 0:01:55.6]} 26... b5
{[%clk 0:01:43.2]} 27. axb5 {[%clk 0:01:34.6]} 27... Bxb5 {[%clk 0:01:44.1]} 28.
Ra5 {[%clk 0:01:32.8]} 28... Rxa5 {[%clk 0:01:33.1]} 29. bxa5 {[%clk 0:01:33.7]}
29... Ra8 {[%clk 0:01:31.9]} 30. Ra1 {[%clk 0:01:33.4]} 30... Nd7 {[%clk
0:01:29.5]} 31. Nfd2 {[%clk 0:01:31.1]} 31... Nc5 {[%clk 0:01:29.3]} 32. Bf1
{[%clk 0:01:31.7]} 32... f5 {[%clk 0:01:23.5]} 33. exf5 {[%clk 0:01:26]} 33...
gxf5 {[%clk 0:01:23.5]} 34. Ne3 {[%clk 0:01:15]} 34... Bd7 {[%clk 0:01:19.7]}
35. Nb3 {[%clk 0:00:58.8]} 35... f4 {[%clk 0:00:52.8]} 36. Nxc5 {[%clk
0:00:58.8]} 36... dxc5 {[%clk 0:00:47.7]} 37. Nf5 {[%clk 0:00:53.5]} 37... Bxf5
{[%clk 0:00:32]} 38. Qxf5 {[%clk 0:00:50.9]} 38... e4 {[%clk 0:00:32.7]} 39. Re1
{[%clk 0:00:32]} 39... fxg3+ {[%clk 0:00:25.6]} 40. fxg3 {[%clk 0:00:32.9]}
40... Rxa5 {[%clk 0:00:14.7]} 41. Rxe4 {[%clk 0:00:31.2]} 41... Qf8 {[%clk
0:00:13.7]} 42. Qg6 {[%clk 0:00:09]} 42... Ra2+ {[%clk 0:00:10.7]} 43. Bg2
{[%clk 0:00:09.2]} 43... Ra8 {[%clk 0:00:09.1]} 44. Re6 {[%clk 0:00:04.4]} 44...
Rd8 {[%clk 0:00:07.9]} 45. h4 {[%clk 0:00:04.2]} 45... Rd6 {[%clk 0:00:06.3]}
46. Be4 {[%clk 0:00:02.8]} 46... Qf2+ {[%clk 0:00:05.6]} 47. Kh3 {[%clk
0:00:03.4]} 47... Qf1+ {[%clk 0:00:05.6]} 48. Kh2 {[%clk 0:00:02.3]} 48... Qf2+
{[%clk 0:00:04.1]} 49. Kh3 {[%clk 0:00:02.7]} 49... Qf1+ {[%clk 0:00:04.5]} 50.
Kg4 {[%clk 0:00:03.2]} 50... Rxe6 {[%clk 0:00:02.3]} 51. Qh7# {[%clk 0:00:02.8]}
1-0

[Event "Late-Titled-Tuesday-Blitz-October-03-2023"]
[Site "Chess.com"]
[Date "2023.10.03"]
[Round "6"]
[White "subham777"]
[Black "KNVB"]
[Result "1/2-1/2"]
[WhiteElo "2543"]
[BlackElo "2693"]
[TimeControl "180+1"]
[EndTime "15:04:34 PDT"]
[Termination "Game drawn by repetition"]

1. e4 {[%clk 0:03:00.9]} 1... e5 {[%clk 0:02:54.7]} 2. Nf3 {[%clk 0:03:00]} 2...
Nc6 {[%clk 0:02:53.3]} 3. Bc4 {[%clk 0:02:59.5]} 3... Nf6 {[%clk 0:02:51.6]} 4.
d3 {[%clk 0:02:55.5]} 4... h6 {[%clk 0:02:49]} 5. c3 {[%clk 0:02:54.4]} 5... d6
{[%clk 0:02:48]} 6. Nbd2 {[%clk 0:02:54.1]} 6... g5 {[%clk 0:02:47.3]} 7. h3
{[%clk 0:02:53.3]} 7... d5 {[%clk 0:02:07.4]} 8. exd5 {[%clk 0:02:42.9]} 8...
Nxd5 {[%clk 0:02:08.3]} 9. Qb3 {[%clk 0:02:35.8]} 9... Be6 {[%clk 0:00:02.9]}
10. Ne4 {[%clk 0:02:16.5]} 10... Na5 {[%clk 0:00:02.5]} 11. Qa4+ {[%clk
0:02:14.6]} 11... c6 {[%clk 0:00:02.7]} 12. Bxd5 {[%clk 0:01:40.3]} 12... Bxd5
{[%clk 0:00:03.6]} 13. b4 {[%clk 0:01:34.5]} 13... Nc4 {[%clk 0:00:03.6]} 14. b5
{[%clk 0:01:02.4]} 14... Nb6 {[%clk 0:00:03.8]} 15. Qa5 {[%clk 0:01:00.4]} 15...
f5 {[%clk 0:00:04.2]} 16. Ng3 {[%clk 0:00:48.1]} 16... Qf6 {[%clk 0:00:03.7]}
17. bxc6 {[%clk 0:00:45.4]} 17... Bxf3 {[%clk 0:00:03.4]} 18. gxf3 {[%clk
0:00:36.3]} 18... bxc6 {[%clk 0:00:04]} 19. Be3 {[%clk 0:00:33.3]} 19... Nd5
{[%clk 0:00:04.4]} 20. Bd2 {[%clk 0:00:20.8]} 20... Bd6 {[%clk 0:00:04.3]} 21.
Qa6 {[%clk 0:00:18.2]} 21... Bc7 {[%clk 0:00:04.9]} 22. Nxf5 {[%clk 0:00:13.7]}
22... O-O {[%clk 0:00:04.1]} 23. Ne3 {[%clk 0:00:12.5]} 23... Nf4 {[%clk
0:00:03.4]} 24. Ng4 {[%clk 0:00:10.6]} 24... Qg6 {[%clk 0:00:03.5]} 25. Qc4+
{[%clk 0:00:09.9]} 25... Kh8 {[%clk 0:00:03.1]} 26. Qe4 {[%clk 0:00:06.9]} 26...
Nxd3+ {[%clk 0:00:01.9]} 27. Ke2 {[%clk 0:00:07.3]} 27... Qxe4+ {[%clk
0:00:02.4]} 28. fxe4 {[%clk 0:00:06.1]} 28... Nf4+ {[%clk 0:00:02.4]} 29. Bxf4
{[%clk 0:00:05.8]} 29... Rxf4 {[%clk 0:00:03.3]} 30. f3 {[%clk 0:00:06.2]} 30...
h5 {[%clk 0:00:03.4]} 31. Ne3 {[%clk 0:00:05.9]} 31... Rb8 {[%clk 0:00:02.3]}
32. Rab1 {[%clk 0:00:05.7]} 32... Rff8 {[%clk 0:00:02.6]} 33. Nf5 {[%clk
0:00:05.4]} 33... Kh7 {[%clk 0:00:02.5]} 34. Rhg1 {[%clk 0:00:04.7]} 34... Rg8
{[%clk 0:00:02.3]} 35. Ne7 {[%clk 0:00:03.3]} 35... Rxb1 {[%clk 0:00:01.6]} 36.
Rxb1 {[%clk 0:00:03.1]} 36... Re8 {[%clk 0:00:02.2]} 37. Nf5 {[%clk 0:00:03.4]}
37... Bb6 {[%clk 0:00:02.3]} 38. a4 {[%clk 0:00:03.3]} 38... Kg6 {[%clk
0:00:02]} 39. c4 {[%clk 0:00:03.1]} 39... Rd8 {[%clk 0:00:01.6]} 40. Rd1 {[%clk
0:00:03.2]} 40... Rxd1 {[%clk 0:00:01.6]} 41. Kxd1 {[%clk 0:00:04.1]} 41... Kf6
{[%clk 0:00:01.8]} 42. Kc2 {[%clk 0:00:04.1]} 42... Bc5 {[%clk 0:00:01.8]} 43.
Kc3 {[%clk 0:00:04.1]} 43... Kf7 {[%clk 0:00:01.3]} 44. Kd3 {[%clk 0:00:04.3]}
44... a6 {[%clk 0:00:01.6]} 45. Ng3 {[%clk 0:00:04.4]} 45... Kg6 {[%clk
0:00:01.8]} 46. Nf5 {[%clk 0:00:04.9]} 46... Kf7 {[%clk 0:00:02.1]} 47. Ke2
{[%clk 0:00:05.1]} 47... Kf6 {[%clk 0:00:02.2]} 48. Kf1 {[%clk 0:00:04.9]} 48...
Bf8 {[%clk 0:00:02.1]} 49. Ke2 {[%clk 0:00:05]} 49... Bc5 {[%clk 0:00:02.6]} 50.
Kd3 {[%clk 0:00:05.2]} 50... Kf7 {[%clk 0:00:02.6]} 1/2-1/2

[Event "Late-Titled-Tuesday-Blitz-October-03-2023"]
[Site "Chess.com"]
[Date "2023.10.03"]
[Round "6"]
[White "Langua_Chess"]
[Black "valemava"]
[Result "0-1"]
[WhiteElo "2484"]
[BlackElo "2311"]
[TimeControl "180+1"]
[EndTime "15:04:34 PDT"]
[Termination "valemava won on time"]

1. e4 {[%clk 0:03:00.9]} 1... c5 {[%clk 0:02:53.4]} 2. Nf3 {[%clk 0:03:00.7]}
2... Qa5 {[%clk 0:02:49.7]} 3. Nc3 {[%clk 0:02:53.7]} 3... a6 {[%clk 0:02:49.3]}
4. d4 {[%clk 0:02:52.3]} 4... b5 {[%clk 0:02:49]} 5. dxc5 {[%clk 0:02:26.3]}
5... e6 {[%clk 0:02:47.6]} 6. Bd2 {[%clk 0:02:26.2]} 6... b4 {[%clk 0:02:48.5]}
7. Nb1 {[%clk 0:02:13.4]} 7... Bxc5 {[%clk 0:02:48]} 8. Be2 {[%clk 0:02:10.1]}
8... Bb7 {[%clk 0:02:45.2]} 9. e5 {[%clk 0:01:58.9]} 9... Ne7 {[%clk 0:02:41.3]}
10. O-O {[%clk 0:01:59.4]} 10... Qb6 {[%clk 0:02:39.2]} 11. Bg5 {[%clk
0:01:48.2]} 11... Nbc6 {[%clk 0:02:37.3]} 12. Nbd2 {[%clk 0:01:45.9]} 12... h6
{[%clk 0:02:34.1]} 13. Nc4 {[%clk 0:01:45.5]} 13... Qc7 {[%clk 0:02:25.2]} 14.
Nd6+ {[%clk 0:01:45.7]} 14... Kf8 {[%clk 0:02:20.9]} 15. Be3 {[%clk 0:01:31.8]}
15... Nd8 {[%clk 0:01:25.5]} 16. Bxc5 {[%clk 0:00:44.4]} 16... Qxc5 {[%clk
0:01:26.4]} 17. Rc1 {[%clk 0:00:44.8]} 17... Bc6 {[%clk 0:01:16]} 18. c3 {[%clk
0:00:43.8]} 18... bxc3 {[%clk 0:01:14]} 19. Rxc3 {[%clk 0:00:43.7]} 19... Qd5
{[%clk 0:01:11.8]} 20. Qc1 {[%clk 0:00:32.9]} 20... g5 {[%clk 0:01:09.9]} 21.
Bc4 {[%clk 0:00:27.9]} 21... Qa5 {[%clk 0:01:05.9]} 22. Bd3 {[%clk 0:00:16.6]}
22... Bxf3 {[%clk 0:01:02.4]} 23. Nc4 {[%clk 0:00:08]} 23... Qc5 {[%clk
0:00:52.1]} 24. gxf3 {[%clk 0:00:08.6]} 24... Qd4 {[%clk 0:00:51.1]} 25. Be4
{[%clk 0:00:08]} 25... Rc8 {[%clk 0:00:49.5]} 26. Rd1 {[%clk 0:00:05.5]} 26...
Qa7 {[%clk 0:00:48.9]} 27. Nd6 {[%clk 0:00:05.4]} 27... Rxc3 {[%clk 0:00:38]}
28. Qxc3 {[%clk 0:00:06.1]} 28... Ndc6 {[%clk 0:00:36.4]} 29. Bxc6 {[%clk
0:00:03.7]} 29... Nxc6 {[%clk 0:00:37.3]} 30. Nc8 {[%clk 0:00:03.4]} 30... Qc7
{[%clk 0:00:36.5]} 31. Qa3+ {[%clk 0:00:01.8]} 31... Kg7 {[%clk 0:00:35.8]} 32.
Nd6 {[%clk 0:00:02.3]} 32... f6 {[%clk 0:00:30]} 33. exf6+ {[%clk 0:00:01.1]}
33... Kxf6 {[%clk 0:00:29.3]} 34. Ne4+ {[%clk 0:00:02]} 34... Kf7 {[%clk
0:00:26]} 35. Qe3 {[%clk 0:00:02.9]} 35... Qf4 {[%clk 0:00:24.4]} 36. Nd6+
{[%clk 0:00:03.1]} 36... Ke7 {[%clk 0:00:22.8]} 37. Qc3 {[%clk 0:00:02.2]} 37...
Rb8 {[%clk 0:00:20.3]} 38. Qg7+ {[%clk 0:00:02.4]} 38... Kd8 {[%clk 0:00:17.4]}
39. Nf7+ {[%clk 0:00:02.3]} 39... Kc7 {[%clk 0:00:16.9]} 40. Nxh6 {[%clk
0:00:01.6]} 40... Rd8 {[%clk 0:00:12.7]} 41. Ng4 {[%clk 0:00:02.1]} 41... Qxf3
{[%clk 0:00:12.2]} 42. Ne5 {[%clk 0:00:02.8]} 42... Qxd1+ {[%clk 0:00:12]} 43.
Kg2 {[%clk 0:00:03]} 43... Qd5+ {[%clk 0:00:11.8]} 44. Nf3 {[%clk 0:00:03.4]}
44... Ne5 {[%clk 0:00:11.5]} 45. Qxe5+ {[%clk 0:00:03.1]} 45... Qxe5 {[%clk
0:00:11]} 46. Nxe5 {[%clk 0:00:04]} 46... d6 {[%clk 0:00:11.2]} 47. Nf7 {[%clk
0:00:04.1]} 47... Rb8 {[%clk 0:00:11.1]} 48. Nxg5 {[%clk 0:00:03.5]} 48... Rxb2
{[%clk 0:00:11.1]} 49. Nxe6+ {[%clk 0:00:03.9]} 49... Kc8 {[%clk 0:00:10.1]} 50.
h4 {[%clk 0:00:01.8]} 50... Rxa2 {[%clk 0:00:10.2]} 51. h5 {[%clk 0:00:02.5]}
51... Ra5 {[%clk 0:00:10.2]} 52. h6 {[%clk 0:00:01.6]} 52... Rh5 {[%clk
0:00:09.9]} 0-1

[Event "Late-Titled-Tuesday-Blitz-October-03-2023"]
[Site "Chess.com"]
[Date "2023.10.03"]
[Round "6"]
[White "Pomberito2"]
[Black "Good_Knight_Kiss"]
[Result "1-0"]
[WhiteElo "2476"]
[BlackElo "2418"]
[TimeControl "180+1"]
[EndTime "15:04:36 PDT"]
[Termination "Pomberito2 won on time"]

1. d4 {[%clk 0:02:54.1]} 1... Nf6 {[%clk 0:02:59.8]} 2. Nf3 {[%clk 0:02:54.1]}
2... g6 {[%clk 0:02:59.7]} 3. Bg5 {[%clk 0:02:53.9]} 3... Bg7 {[%clk 0:02:59.8]}
4. e3 {[%clk 0:02:52.6]} 4... d6 {[%clk 0:03:00]} 5. Bd3 {[%clk 0:02:52.7]} 5...
h6 {[%clk 0:02:58.9]} 6. Bh4 {[%clk 0:02:52.4]} 6... O-O {[%clk 0:02:59.2]} 7.
Nbd2 {[%clk 0:02:52.7]} 7... Nc6 {[%clk 0:02:59]} 8. c3 {[%clk 0:02:52.8]} 8...
e5 {[%clk 0:02:59.1]} 9. Qe2 {[%clk 0:02:49.6]} 9... Qe7 {[%clk 0:02:39]} 10. d5
{[%clk 0:02:45.7]} 10... Nd8 {[%clk 0:02:35.7]} 11. e4 {[%clk 0:02:45.6]} 11...
c6 {[%clk 0:02:28.9]} 12. c4 {[%clk 0:02:43.4]} 12... cxd5 {[%clk 0:02:24.8]}
13. cxd5 {[%clk 0:02:42.3]} 13... Qc7 {[%clk 0:02:06.5]} 14. O-O {[%clk
0:02:38.4]} 14... Nh5 {[%clk 0:02:00.8]} 15. Rfc1 {[%clk 0:02:29.9]} 15... Qb6
{[%clk 0:01:32.7]} 16. Nc4 {[%clk 0:02:28.3]} 16... Qb4 {[%clk 0:01:31.7]} 17.
Be7 {[%clk 0:02:15.6]} 17... Nf4 {[%clk 0:01:29]} 18. Qd1 {[%clk 0:02:14.1]}
18... Bg4 {[%clk 0:01:13.5]} 19. Bxd6 {[%clk 0:02:06]} 19... Qb5 {[%clk
0:01:09.6]} 20. Ncxe5 {[%clk 0:02:04.7]} 20... Nxd3 {[%clk 0:01:08]} 21. Qxd3
{[%clk 0:01:58.2]} 21... Qxd3 {[%clk 0:00:33.8]} 22. Nxd3 {[%clk 0:01:57]} 22...
Re8 {[%clk 0:00:32.1]} 23. h3 {[%clk 0:01:56.2]} 23... Bxf3 {[%clk 0:00:24]} 24.
gxf3 {[%clk 0:01:57.1]} 24... Bd4 {[%clk 0:00:18.9]} 25. Rc7 {[%clk 0:01:51.6]}
25... f5 {[%clk 0:00:17.1]} 26. Re1 {[%clk 0:01:37]} 26... Nf7 {[%clk
0:00:11.6]} 27. Bb4 {[%clk 0:01:30.5]} 27... a5 {[%clk 0:00:10.8]} 28. Bc3
{[%clk 0:01:30.2]} 28... Bxc3 {[%clk 0:00:10]} 29. bxc3 {[%clk 0:01:30.7]} 29...
fxe4 {[%clk 0:00:06]} 30. fxe4 {[%clk 0:01:30.1]} 30... Nd6 {[%clk 0:00:06.4]}
31. f3 {[%clk 0:01:26.5]} 31... Rac8 {[%clk 0:00:04.8]} 32. Rd7 {[%clk
0:01:19.2]} 32... Nb5 {[%clk 0:00:03.7]} 33. Nf4 {[%clk 0:01:18.4]} 33... Rf8
{[%clk 0:00:02.1]} 34. Nxg6 {[%clk 0:01:16.2]} 34... Rf7 {[%clk 0:00:02.2]} 35.
Rxf7 {[%clk 0:01:10.7]} 35... Kxf7 {[%clk 0:00:02.2]} 36. Ne5+ {[%clk
0:01:11.1]} 36... Kf6 {[%clk 0:00:02.6]} 37. Nd7+ {[%clk 0:01:01.5]} 37... Ke7
{[%clk 0:00:02.1]} 38. Ne5 {[%clk 0:00:57.9]} 38... Rxc3 {[%clk 0:00:02]} 39.
Kg2 {[%clk 0:00:54.3]} 39... Nd4 {[%clk 0:00:01.8]} 40. Rb1 {[%clk 0:00:48.5]}
40... b5 {[%clk 0:00:01.8]} 41. Nc6+ {[%clk 0:00:42.9]} 41... Nxc6 {[%clk
0:00:01.8]} 42. dxc6 {[%clk 0:00:43.8]} 42... b4 {[%clk 0:00:02.4]} 43. Rd1
{[%clk 0:00:42.4]} 43... Rxc6 {[%clk 0:00:02.2]} 44. Rd5 {[%clk 0:00:42.5]}
44... Rc2+ {[%clk 0:00:02.3]} 45. Kg3 {[%clk 0:00:41.9]} 45... Rxa2 {[%clk
0:00:02.7]} 46. Rb5 {[%clk 0:00:41.9]} 46... Ra3 {[%clk 0:00:02.1]} 47. Kg4
{[%clk 0:00:41.3]} 47... b3 {[%clk 0:00:02.6]} 48. Kf5 {[%clk 0:00:40.8]} 48...
a4 {[%clk 0:00:02.9]} 49. e5 {[%clk 0:00:41.1]} 49... Ra2 {[%clk 0:00:02.8]} 50.
Rb7+ {[%clk 0:00:40.9]} 50... Kd8 {[%clk 0:00:02.7]} 51. Ke6 {[%clk 0:00:39.4]}
51... Re2 {[%clk 0:00:01.9]} 52. f4 {[%clk 0:00:38.7]} 52... b2 {[%clk
0:00:02.3]} 53. f5 {[%clk 0:00:38.6]} 53... a3 {[%clk 0:00:02.6]} 54. f6 {[%clk
0:00:38.8]} 54... a2 {[%clk 0:00:02.8]} 55. f7 {[%clk 0:00:38.9]} 55... Rf2
{[%clk 0:00:01.6]} 56. Rxb2 {[%clk 0:00:38]} 56... Rxb2 {[%clk 0:00:01.6]} 57.
f8=Q+ {[%clk 0:00:36.4]} 57... Kc7 {[%clk 0:00:02.5]} 58. Qa3 {[%clk 0:00:33.3]}
1-0

[Event "Late-Titled-Tuesday-Blitz-October-03-2023"]
[Site "Chess.com"]
[Date "2023.10.03"]
[Round "6"]
[White "ljuks68"]
[Black "nicholas_ilic"]
[Result "1-0"]
[WhiteElo "2383"]
[BlackElo "2197"]
[TimeControl "180+1"]
[EndTime "15:04:39 PDT"]
[Termination "ljuks68 won by checkmate"]

1. e4 {[%clk 0:02:43.8]} 1... c5 {[%clk 0:02:58.5]} 2. Nf3 {[%clk 0:02:43.4]}
2... Nc6 {[%clk 0:02:58]} 3. d4 {[%clk 0:02:44]} 3... cxd4 {[%clk 0:02:58.6]} 4.
Nxd4 {[%clk 0:02:44.9]} 4... g6 {[%clk 0:02:58.6]} 5. Nc3 {[%clk 0:02:45.8]}
5... Bg7 {[%clk 0:02:58.8]} 6. Be3 {[%clk 0:02:46.1]} 6... Nf6 {[%clk 0:02:59]}
7. f3 {[%clk 0:02:44.7]} 7... O-O {[%clk 0:02:57.8]} 8. Bc4 {[%clk 0:02:42.5]}
8... Qb6 {[%clk 0:02:50.5]} 9. Ncb5 {[%clk 0:02:22.7]} 9... a6 {[%clk
0:01:45.3]} 10. Nf5 {[%clk 0:02:03.4]} 10... Qd8 {[%clk 0:01:41]} 11. Nbd4
{[%clk 0:02:02.6]} 11... gxf5 {[%clk 0:01:35.2]} 12. Nxf5 {[%clk 0:02:02.7]}
12... e6 {[%clk 0:01:30.1]} 13. Nxg7 {[%clk 0:02:01.5]} 13... Kxg7 {[%clk
0:01:30.3]} 14. Qd2 {[%clk 0:02:00.2]} 14... Ng8 {[%clk 0:01:00.6]} 15. O-O-O
{[%clk 0:01:56.4]} 15... Qa5 {[%clk 0:00:56.2]} 16. Qf2 {[%clk 0:01:46]} 16...
f6 {[%clk 0:00:46.4]} 17. g4 {[%clk 0:01:38.2]} 17... Ne5 {[%clk 0:00:29.6]} 18.
Bb3 {[%clk 0:01:33.6]} 18... Qc7 {[%clk 0:00:25.8]} 19. Bd4 {[%clk 0:01:13.8]}
19... a5 {[%clk 0:00:23.1]} 20. a4 {[%clk 0:01:07.4]} 20... b5 {[%clk
0:00:22.7]} 21. f4 {[%clk 0:01:05.4]} 21... bxa4 {[%clk 0:00:20.1]} 22. Bxa4
{[%clk 0:01:02]} 22... Nc4 {[%clk 0:00:17.6]} 23. g5 {[%clk 0:00:56.2]} 23...
Bb7 {[%clk 0:00:13.9]} 24. gxf6+ {[%clk 0:00:46.6]} 24... Nxf6 {[%clk
0:00:14.1]} 25. Bxf6+ {[%clk 0:00:44.2]} 25... Rxf6 {[%clk 0:00:13]} 26. Rxd7+
{[%clk 0:00:43.7]} 26... Qxd7 {[%clk 0:00:12.8]} 27. Bxd7 {[%clk 0:00:43.3]}
27... Bxe4 {[%clk 0:00:12.8]} 28. Qd4 {[%clk 0:00:23.6]} 28... Bxh1 {[%clk
0:00:08.9]} 29. Qxc4 {[%clk 0:00:19.1]} 29... Bd5 {[%clk 0:00:09.5]} 30. Qd4
{[%clk 0:00:17.8]} 30... Rf8 {[%clk 0:00:09.4]} 31. c4 {[%clk 0:00:16.8]} 31...
Bf3 {[%clk 0:00:07]} 32. c5 {[%clk 0:00:16.4]} 32... Kh6 {[%clk 0:00:06.3]} 33.
Qe3 {[%clk 0:00:14]} 33... Bd5 {[%clk 0:00:04.1]} 34. c6 {[%clk 0:00:13.7]}
34... Bxc6 {[%clk 0:00:02.1]} 35. Bxc6 {[%clk 0:00:04.2]} 35... Rxf4 {[%clk
0:00:02.3]} 36. Be4 {[%clk 0:00:02.8]} 36... Kg7 {[%clk 0:00:01.7]} 37. Qg3+
{[%clk 0:00:02.5]} 37... Rg4 {[%clk 0:00:02.1]} 38. Qxg4+ {[%clk 0:00:02.1]}
38... Kh8 {[%clk 0:00:02.1]} 39. Qg5 {[%clk 0:00:02.2]} 39... Rg8 {[%clk
0:00:01.7]} 40. Qh6 {[%clk 0:00:02]} 40... Rg7 {[%clk 0:00:01.8]} 41. Qh5 {[%clk
0:00:01.6]} 41... Rc7+ {[%clk 0:00:01.4]} 42. Kb1 {[%clk 0:00:01.4]} 42... Rd7
{[%clk 0:00:01.5]} 43. Qe5+ {[%clk 0:00:02.3]} 43... Kg8 {[%clk 0:00:01.6]} 44.
Bf3 {[%clk 0:00:03.1]} 44... Re7 {[%clk 0:00:01.9]} 45. Qg5+ {[%clk 0:00:03.4]}
45... Kf8 {[%clk 0:00:02.4]} 46. Bh5 {[%clk 0:00:04.3]} 46... Rg7 {[%clk
0:00:02.1]} 47. Qf6+ {[%clk 0:00:04.6]} 47... Kg8 {[%clk 0:00:01.8]} 48. Qd8#
{[%clk 0:00:05.1]} 1-0

[Event "Late-Titled-Tuesday-Blitz-October-03-2023"]
[Site "Chess.com"]
[Date "2023.10.03"]
[Round "6"]
[White "carokannlover213"]
[Black "Djager97"]
[Result "1-0"]
[WhiteElo "2724"]
[BlackElo "2547"]
[TimeControl "180+1"]
[EndTime "15:04:40 PDT"]
[Termination "carokannlover213 won by resignation"]

1. e4 {[%clk 0:03:00.9]} 1... e5 {[%clk 0:02:59.8]} 2. Nf3 {[%clk 0:03:00.4]}
2... Nc6 {[%clk 0:03:00.5]} 3. Bb5 {[%clk 0:03:00.7]} 3... a6 {[%clk 0:03:00.5]}
4. Ba4 {[%clk 0:03:00.8]} 4... Nf6 {[%clk 0:02:59.6]} 5. O-O {[%clk 0:03:00.9]}
5... b5 {[%clk 0:03:00.2]} 6. Bb3 {[%clk 0:03:00.7]} 6... Bc5 {[%clk 0:03:00.8]}
7. c3 {[%clk 0:03:01.2]} 7... d6 {[%clk 0:02:59.3]} 8. d4 {[%clk 0:02:55.4]}
8... Bb6 {[%clk 0:02:59.3]} 9. dxe5 {[%clk 0:02:28.7]} 9... Nxe5 {[%clk
0:02:54.1]} 10. Nxe5 {[%clk 0:02:28.3]} 10... dxe5 {[%clk 0:02:54.7]} 11. Qxd8+
{[%clk 0:02:26.5]} 11... Kxd8 {[%clk 0:02:55.6]} 12. Bxf7 {[%clk 0:02:26.7]}
12... Rf8 {[%clk 0:02:54.5]} 13. Bd5 {[%clk 0:02:24.4]} 13... Nxd5 {[%clk
0:02:54.8]} 14. exd5 {[%clk 0:02:25.3]} 14... Bb7 {[%clk 0:02:55.5]} 15. Be3
{[%clk 0:02:23.6]} 15... Bxe3 {[%clk 0:02:52.7]} 16. fxe3 {[%clk 0:02:24.5]}
16... Rxf1+ {[%clk 0:02:50.9]} 17. Kxf1 {[%clk 0:02:25.4]} 17... Bxd5 {[%clk
0:02:50.9]} 18. Nd2 {[%clk 0:02:26]} 18... Ke7 {[%clk 0:02:50.7]} 19. e4 {[%clk
0:02:24.3]} 19... Be6 {[%clk 0:02:47.5]} 20. Ke2 {[%clk 0:02:23.8]} 20... c5
{[%clk 0:02:18]} 21. a4 {[%clk 0:02:09]} 21... b4 {[%clk 0:02:15]} 22. cxb4
{[%clk 0:02:09.4]} 22... cxb4 {[%clk 0:02:14.9]} 23. Rc1 {[%clk 0:02:10.3]}
23... Rc8 {[%clk 0:02:02.8]} 24. Rxc8 {[%clk 0:02:03.1]} 24... Bxc8 {[%clk
0:02:03.7]} 25. Nc4 {[%clk 0:01:17.3]} 25... Ke6 {[%clk 0:02:03]} 26. Ke3 {[%clk
0:00:55.5]} 26... Bd7 {[%clk 0:01:54.9]} 27. b3 {[%clk 0:00:33]} 27... g5 {[%clk
0:01:51.5]} 28. Nb2 {[%clk 0:00:30.6]} 28... Kd6 {[%clk 0:01:46.5]} 29. Nc4+
{[%clk 0:00:29.6]} 29... Ke6 {[%clk 0:01:15.8]} 30. Kd3 {[%clk 0:00:29.1]} 30...
Bc6 {[%clk 0:01:01.7]} 31. Nd2 {[%clk 0:00:27.1]} 31... Kd6 {[%clk 0:01:00.1]}
32. Kc4 {[%clk 0:00:26.5]} 32... a5 {[%clk 0:00:58.6]} 33. Kd3 {[%clk
0:00:26.8]} 33... Kc5 {[%clk 0:00:43.8]} 34. Nc4 {[%clk 0:00:22.6]} 34... Bd7
{[%clk 0:00:35.9]} 35. Nxe5 {[%clk 0:00:08.7]} 35... Be6 {[%clk 0:00:36.6]} 36.
Kc2 {[%clk 0:00:06.2]} 36... g4 {[%clk 0:00:18.7]} 37. Kb2 {[%clk 0:00:04.2]}
37... h5 {[%clk 0:00:14.8]} 38. g3 {[%clk 0:00:03.3]} 38... Kd4 {[%clk
0:00:09.3]} 39. Nc6+ {[%clk 0:00:02.4]} 39... Kxe4 {[%clk 0:00:09.9]} 40. Nxa5
{[%clk 0:00:03.3]} 40... Kf3 {[%clk 0:00:10.3]} 41. Nc6 {[%clk 0:00:03.3]} 41...
Kg2 {[%clk 0:00:09.7]} 42. a5 {[%clk 0:00:03.9]} 42... Kxh2 {[%clk 0:00:07.4]}
43. a6 {[%clk 0:00:04.2]} 43... Bd5 {[%clk 0:00:07.8]} 44. Nxb4 {[%clk
0:00:04.2]} 44... Ba8 {[%clk 0:00:08.1]} 45. Nd3 {[%clk 0:00:01.7]} 45... Kxg3
{[%clk 0:00:08.3]} 46. b4 {[%clk 0:00:01.6]} 46... h4 {[%clk 0:00:08.9]} 47. b5
{[%clk 0:00:02]} 47... h3 {[%clk 0:00:09.5]} 48. b6 {[%clk 0:00:02.5]} 48... h2
{[%clk 0:00:09.7]} 49. b7 {[%clk 0:00:03]} 49... h1=Q {[%clk 0:00:07.5]} 50.
b8=Q+ {[%clk 0:00:03.4]} 50... Kh3 {[%clk 0:00:06.2]} 51. Nf2+ {[%clk
0:00:02.7]} 51... Kh4 {[%clk 0:00:05.4]} 52. Nxh1 {[%clk 0:00:03.6]} 1-0